Cogmind - Beta 11 X4 @@@ ROGUE MODE // 2021.06.01 @ 22:14:34 Player: Runia Result: Self-destructed Performance ------------- Evolutions (1) 500 Regions Visited (2) 400 Robots Destroyed (5) 25 Value Destroyed (85) 85 Prototype IDs (2) 40 Alien Tech Used (0) 0 Bonus (200) 200 TOTAL SCORE: 1250 Bonus ------- Pacifist 200 Cogmind --------- Core Integrity 169/400 Matter 300/300 Energy 265/265 System Corruption 0% Temperature Cool (0) Movement Core (500) Ox9 Location -9/Materials Parts ------- > --- POWER (1) -------- Improved Ion Engine > --- PROPULSION (3) --- (None) > --- UTILITY (3) ------ Large Storage Unit Terrain Scanner > --- WEAPON (2) ------- (None) > --- INVENTORY (15) --- Improved Ion Engine Light Treads Signal Interpreter Peak State ------------ > --- POWER ------------ Ion Engine > --- PROPULSION ------- Aluminum Leg Aluminum Leg > --- UTILITY ---------- Large Storage Unit Terrain Scanner Hardened Light Armor Plating > --- WEAPON ----------- EM Pulse Gun Medium Laser > --- INVENTORY -------- Ion Engine Light Treads Light Treads Signal Interpreter [Rating: 9] Favorites ----------- Power Ion Engine Engine Ion Engine Propulsion Aluminum Leg Treads Light Treads Leg Aluminum Leg Utility Large Storage Unit Device Terrain Scanner Storage Large Storage Unit Protection Hardened Light Armor Plating Weapon Medium Laser Energy Gun Medium Laser Ballistic Gun Light Assault Rifle Build | -11 -10 -9 ------- Run | Scr Mat Mat Slots Evolved 2 | . . 2 Power . | . . . Propulsion 1 | . . 1 Utility 1 | . . 1 Weapon . | . . . Parts Attached 7 | . 1 6 Power 1 | . . 1 Engine 1 | . . 1 Core . | . . . Reactor . | . . . Propulsion 1 | . . 1 Treads 1 | . . 1 Leg . | . . . Wheel . | . . . Hover . | . . . Flight . | . . . Utility 3 | . 1 2 Device 1 | . . 1 Storage 1 | . 1 . Processor . | . . . Hackware . | . . . Protection 1 | . . 1 Artifact . | . . . Weapon 2 | . . 2 Energy Gun 1 | . . 1 Energy Cannon . | . . . Ballistic Gun 1 | . . 1 Ballistic Cannon . | . . . Launcher . | . . . Special Weapon . | . . . Impact Weapon . | . . . Slashing Weapon . | . . . Piercing Weapon . | . . . Special Melee Weapon . | . . . Unidentified Prototypes . | . . . Parts Lost 8 | . . 8 Power 1 | . . 1 Propulsion 3 | . . 3 Utility 1 | . . 1 Weapon 3 | . . 3 Highest Loss Streak 6 | . . 6 Average Slot Usage (%) 79 | . 85 77 Engine 11 | . 14 11 Treads 1 | . . 1 Leg 21 | . 28 19 Device 8 | . . 11 Storage 11 | . 14 11 Protection 5 | . . 7 Energy Gun 17 | . 28 14 Naked Turns . | . . . Heaviest Build 35 | 13 28 35 Greatest Support 20 | 20 20 20 Greatest Overweight (x) 9 | . 1 9 Average Overweight (x) . | . . 1 Largest Inventory Capacity 15 | 8 15 15 Average Capacity 14 | 8 11 15 Most Carried 7 | 5 7 6 Average Carried 4 | 5 5 4 Final Capacity 15 | 8 15 15 Final Carried 6 | 4 6 3 Class Distribution -------------------- 100% | Mutant Dominant Class ---------------- Mutant | -10/Materials Mutant | -9/Materials Resources | -11 -10 -9 ----------- Run | Scr Mat Mat Matter Collected 232 | 200 . 32 Remotely . | . . . Salvage Created 121 | . . 121 Parts 11 | . . 11 Haulers Intercepted . | . . . Recyclers Shooed . | . . . Parts Field Recycled . | . . . Retrieved Matter . | . . . Parts Self-Destructed . | . . . Prevented . | . . . Kills | -11 -10 -9 ------- Run | Scr Mat Mat Combat Hostiles Destroyed 5 | . . 5 Guns 5 | . . 5 Classes Destroyed 2 | . . 2 Swarmer 4 | . . 4 Sentry 1 | . . 1 Best Kill Streak 4 | . . 4 Combat Bots Only 4 | . . 4 Max Kills in Single Turn 1 | . . 1 Gunslinging . | . . . Exploded . | . . . Melee . | . . . Uniques/NPCs Destroyed . | . . . Combat | -11 -10 -9 -------- Run | Scr Mat Mat Damage Taken 1096 | . . 1096 Core 231 | . . 231 Absorbed by Shields . | . . . Core Remaining (%) 100 | 100 100 . Volleys Fired 23 | . . 23 Largest 2 | . . 2 Hottest 90 | . . 90 Shots Fired 32 | . . 32 Gun 32 | . . 32 Cannon . | . . . Launcher . | . . . Special . | . . . Kinetic 13 | . . 13 Thermal 10 | . . 10 Explosive . | . . . Electromagnetic 9 | . . 9 Robot Hit Streak 13 | . . 13 Robot Miss Streak 1 | . . 1 Penetration Max . | . . . Secondary Targets 1 | . . 1 Max Gunslinging Chain 1 | . . 1 Shots Hit Robots 27 | . . 27 Core Hits 9 | . . 9 Critical Kills . | . . . Critical Parts Destroyed 1 | . . 1 Critical Strikes 2 | . . 2 Burn 1 | . . 1 Destroy 1 | . . 1 Melee Attacks . | . . . Impact . | . . . Slashing . | . . . Piercing . | . . . Sneak Attacks . | . . . Combat Hostiles . | . . . Follow-up Attacks . | . . . Damage Inflicted 284 | . . 284 Guns 274 | . . 274 Cannons . | . . . Explosions . | . . . Melee . | . . . Ramming 10 | . . 10 Kinetic 85 | . . 85 Thermal 96 | . . 96 Explosive . | . . . Electromagnetic 93 | . . 93 Impact . | . . . Slashing . | . . . Piercing . | . . . Highest Corruption . | . . . Average Corruption . | . . . Corruption Purged . | . . . Overload Shots . | . . . Overflow Damage . | . . . Projectiles . | . . . Explosions . | . . . Melee . | . . . Knockbacks . | . . . Impact . | . . . Kinetic . | . . . Secondary . | . . . Self-Inflicted Damage . | . . . Shots . | . . . Rammed 1 | . . 1 Targets Rammed 11 | . . 11 Kicked 10 | . . 10 Crushed . | . . . Highest Temperature 225 | . . 225 Average Temperature 87 | . . 87 Received Heat Transfer 315 | . . 315 Siege Activations . | . . . Robots Corrupted . | . . . Combat Hostiles . | . . . Parts Fried . | . . . Impact Corruptions . | . . . Robots Melted . | . . . Combat Hostiles . | . . . Parts Melted 2 | . . 2 Heat Transferred 370 | . . 370 Parts Sabotaged . | . . . Parts Stolen . | . . . Parts Stripped . | . . . Power Chain Reactions . | . . . Missiles Intercepted . | . . . Alert | -11 -10 -9 ------- Run | Scr Mat Mat Peak Influence 152 | . 7 152 Initial 2 | . . 2 Average 65 | . 2 86 Maximum Alert Level . | . . . Low Security (%) 100 | 100 100 100 Level 1 . | . . . Level 2 . | . . . Level 3 . | . . . Level 4 . | . . . Level 5 . | . . . High Security . | . . . Max Security . | . . . Squads Dispatched 1 | . 1 . Investigation . | . . . Extermination . | . . . Reinforcement 1 | . 1 . Assault . | . . . Garrison . | . . . Intercept . | . . . Construction Impeded . | . . . Haulers Reinforced . | . . . Cargo Convoy Interrupts . | . . . Stealth | -11 -10 -9 --------- Run | Scr Mat Mat Distress Signals . | . . . Communications Jammed . | . . . Distress Signals . | . . . Times Spotted 11 | . 2 9 Peak Tracking Total 5 | . 2 5 Tactical Retreats 2 | . . 2 Traps | -11 -10 -9 ------- Run | Scr Mat Mat Traps Triggered . | . . . Indirectly . | . . . Trap Hack Attempts . | . . . Triggered . | . . . Disarmed . | . . . Reprogrammed . | . . . Reused . | . . . Traps Extracted . | . . . Installed . | . . . Triggered . | . . . Machines | -11 -10 -9 ---------- Run | Scr Mat Mat Machines Disabled . | . . . Max in Single Turn . | . . . Machines Sabotaged . | . . . Garrisons Compromised . | . . . Overloaded Fab Kills . | . . . Fab Network Shutdowns . | . . . Hacking | -11 -10 -9 --------- Run | Scr Mat Mat Machines Accessed 2 | . 2 . Terminals 2 | . 2 . Fabricators . | . . . Repair Stations . | . . . Recycling Units . | . . . Scanalyzers . | . . . Garrison Access . | . . . Total Hacks 5 | . 5 . Successful 3 | . 3 . Failed 2 | . 2 . Catastrophic . | . . . Database Lockouts . | . . . Manual 2 | . 2 . Terminals 5 | . 5 . Fabricators . | . . . Repair Stations . | . . . Recycling Units . | . . . Scanalyzers . | . . . Garrison Access . | . . . Terminal Hacks 3 | . 3 . Part Schematic 2 | . 2 . Prototype ID Bank 1 | . 1 . Fabricator Hacks . | . . . Repair Station Hacks . | . . . Recycling Unit Hacks . | . . . Scanalyzer . | . . . Garrison Access Hacks . | . . . Unauthorized Hacks . | . . . Terminals . | . . . Fabricators . | . . . Repair Stations . | . . . Recycling Units . | . . . Scanalyzers . | . . . Garrison Access . | . . . Data Cores Recovered . | . . . Used . | . . . Hacking Detections 2 | . 2 . Full Trace Events . | . . . Feedback Events . | . . . Feedback Blocked . | . . . Robot Schematics Acquired . | . . . Robots Built . | . . . Matter . | . . . Time . | . . . Total Robot Build Rating . | . . . Part Schematics Acquired 2 | . 2 . Parts Built . | . . . Matter . | . . . Time . | . . . Total Part Build Rating . | . . . Parts Repaired . | . . . Time . | . . . Parts Recycled . | . . . Recycled Matter . | . . . Retrieved Matter . | . . . Retrieved Components . | . . . Parts Scanalyzed . | . . . Part Schematics Acquired . | . . . Parts Damaged . | . . . Bothacking | -11 -10 -9 ------------ Run | Scr Mat Mat Used RIF Installer . | . . . Robots Hacked . | . . . Non-combat . | . . . Combat . | . . . Robot Hacks Applied . | . . . Relay Couplers Released . | . . . Robots Rewired . | . . . Allies Hacked . | . . . Hacks Repelled . | . . . Allies | -11 -10 -9 -------- Run | Scr Mat Mat Total Allies . | . . . Largest Group . | . . . Highest-Rated Group . | . . . Highest-Rated Ally . | . . . Total Orders . | . . . Ally Attacks . | . . . Total Damage . | . . . Kills . | . . . Allies Corrupted . | . . . Allies Melted . | . . . Intel | -11 -10 -9 ------- Run | Scr Mat Mat Robot Analysis Total . | . . . Derelict Logs Recovered . | . . . Drone Launches . | . . . Drone Recoveries . | . . . Exploration | -11 -10 -9 ------------- Run | Scr Mat Mat Turns Passed 347 | 1 87 259 Spaces Moved 128 | 1 56 71 Core 1 | . . 1 Treads . | . . . Legs 127 | 1 56 70 Wheels . | . . . Hover . | . . . Flight . | . . . Fastest Speed 120 | 120 120 200 Average Speed 179 | 120 148 205 Slowest Speed 500 | 120 200 500 Overloaded Moves . | . . . Propulsion Burnouts . | . . . Robots Hopped . | . . . Cave-ins Triggered . | . . . Exploration Rate (%) 9 | 2 18 9 Regions Visited 2 Branch Regions . Pre-discovered Areas . | . . . Known Exits Taken . | . . . Unknown Exits Taken 2 | 1 1 . Scrap Searched . | . . . Spaces Dug . | . . . Terrain Destroyed . | . . . Melee . | . . . Projectile . | . . . AOE . | . . . Terrain Rammed . | . . . Walls Destroyed . | . . . Machines Disabled . | . . . Actions | -11 -10 -9 --------- Run | Scr Mat Mat Total 195 | 2 60 133 Wait 14 | . . 14 Move 126 | . 55 71 Hop . | . . . Pick Up 8 | . 3 5 Fast Attach . | . . . Attach 5 | . . 5 Detach . | . . . Swap 2 | . 1 1 Drop 6 | 2 1 3 Fire 23 | . . 23 Melee . | . . . Ram 1 | . . 1 Kick 10 | . . 10 Crush . | . . . Escape Stasis . | . . . Rewire . | . . . Trap . | . . . Miscellaneous . | . . . Route ------- -11/Scrapyard -10/Materials -9/Materials History --------- Turn | Location | Event 2 | -11/Scrapyard | Discovered new exit (range 0) 2 | -11/Scrapyard | Entered Materials 51 | -10/Materials | Discovered new exit (range 10) 89 | -10/Materials | Entered another Materials area 89 | -9/Materials | Evolved 2 slots: Propulsion x1, Utility x1 325 | -9/Materials | Build established: Mutant 343 | -9/Materials | Core integrity fell below 50% 348 | -9/Materials | Self-destructed Last Messages --------------- Acquired Lgt. Assault Rifle. K-01 Serf collects debris. S-10 Pest destroyed. R-06 Scavenger collects Lgt. Assault Rifle. Hrd. Light Armor Plating destroyed. Y-45 Defender suffers critical hit (Destroy). Destroyed Lgt. Treads. Ion Engine destroyed. Lgt. Assault Rifle destroyed. Aluminum Leg destroyed. K-01 Serf collects debris. Kicked Y-45 Defender. K-01 Serf collects debris. Kicked Y-45 Defender. R-06 Scavenger collects Heat Sink. Kicked Y-45 Defender. Aluminum Leg destroyed. Slammed into Y-45 Defender. K-01 Serf collects debris. Lgt. Treads destroyed. Map ----- +----------------------------------------------------+ | ?????????????????????????????????????????????????? | | ?????????????????????????????????????????????????? | | ?????????????????????????????????????????????????? | | ?????????????????????????????????????????????????? | | ?????????????????????????????????????????????????? | | ?????????????????????????????????????????????????? | | ?????????????????????????????????????????????????? | | ?????????????????????????????????????????????????? | | ??????????????????????????????#????? ???????????? | | ???????????????????????????????????? ???????????? | | ????????????????????????????####???? ???????????? | | ???????????????????????????##!!!!??? #??????????? | | ???????????????????????????#! ??? #??????????? | | ?????????????????????#?????#! ??# ##?????????? | | ???????????????????????????# ?? #?????????? | | ???????????????????????????? ?? ?#????????? | | ????????????????#???????#? ?? ? ??????????? | | ???? ?????????????????######+#### #?????????? | | ???? #????????????????# ## #??????????? | | ???? #??????????????### !! ## #??????????? | | ???# #???????????????# * ! ## #??????????? | | ???# #??????#????????##[ ## #??????????? | | ???# #???????########?#%"" ## ### #???? | | ???# #???????# #?#="T + #???? | | ???+ +???????# ###*%" ## +???? | | ???# #???????# """ #?#@*=% ####### #???? | | ?? # #??????## """ #?#/###########?????? ##???? | | ???# #???#???# """ #?#Y#????? ???#????????????? | | ##?# #?????#?# #?#=###?? ?????#???????#???? | | # #????#??? ? ###%###????? ???????? ?????? | | # #############+## %%% # ???? ??#???#???????? | | + ###+?????????????????? | | # ???????????? | | " # [ ### ????#?????? | | " ?# ##+#+####### u #???? ?#?????????? | | ##?# # ##??###+###?#????? ???????????? | | ??## # #?? ?? #?#???????????????????? | | + #??#?? #?? ?? ??????????????? | | ############ #????? #??? ?????????????????? | | ??#????????# #?#?#? ??????????????????????? | | ???????????# #????? ??????????????????????? | | ???????????##########??? ??????????????????????? | | ????##????#?????????????###??????????????????????? | | | | | | | | | | | | | | | +----------------------------------------------------+ Best States ------------- Heat Dissipation 28 Energy Generation 12 Energy Capacity 265 Matter Stores 300 Matter Capacity 300 Sight Range 16 Terrain Scan Range 14 Terrain Scan Density 10 Armor Coverage 150 Evasion (%) 55 Item Schematics ----------------- Lrg. Storage Unit | -10/Materials | Hacked Sensor Array | -10/Materials | Hacked Robot Schematics ------------------ None Fabricated ------------ Nothing Alien Tech Used ----------------- None Achievements -------------- None Challenges ------------ None Game ------ Seed DecoderShadingGreatsword Manual? 0 Play Time 00:04:04 Cumulative 183.0 hours Start 2021.06.01 @ 22:11:58 End 2021.06.01 @ 22:14:34 Sessions 1 Manual Loads 0 Difficulty Rogue Special Mode None Game No. 220 Rogue 220 Adventurer 0 Explorer 0 Win Type - Total 2 Types 2/0/0/0/0/0/0/0/0 Lore% 57 Gallery% 76 Achievement% 56 Wizard Run 0 Options --------- ASCII 0 Keyboard 0 Movement Mouse Keybinds 1 Fullscreen 2 Font 24/Smallcaps Map View 76x50 Tactical HUD 1 Map Filters NONE Filters NONE Steam 1 RUN: a0ab9bfb-3437-424e-8f55-a53861c05f8e